{"text_format":"1","workbook":"xlsx","n_sheets":2,"sheets":["GESTIÓN EFICIENTE DEL TIEMPO","prueba"],"not_rendered":{"charts":1,"images":4,"macros":1,"external_links":1,"defined_names":16,"comments":0,"pivot_tables":0},"unopened":[],"bounds":{"document_bytes":16777216,"sheet_cells":100000,"rows_first":2000,"rows_last":500,"rows_between":2000,"halvings":0,"cell_chars":16384,"cell_head_chars":4096},"cells_cut":0,"cells_raw":0,"read":"whole","date_system":"1900"}

{"sheet":"GESTIÓN EFICIENTE DEL TIEMPO","index":0,"n_rows":350,"n_cols":71,"rows_kept":350,"cut":false,"hidden":false,"merged":[[54,4,54,5],[298,2,298,12],[300,4,300,11],[43,4,43,5],[301,4,301,11],[45,4,45,5],[46,4,46,5],[47,4,47,5],[48,4,48,5],[50,4,50,5],[51,4,51,5],[52,4,52,5],[53,4,53,5],[37,4,37,5],[38,4,38,5],[39,4,39,5],[40,4,40,5],[41,4,41,5],[42,4,42,5],[27,4,27,5],[28,4,28,5],[29,4,29,5],[30,4,30,5],[31,4,31,5],[44,4,44,5],[33,4,33,5],[34,4,34,5],[35,4,35,5],[36,4,36,5],[17,4,17,5],[18,4,18,5],[19,4,19,5],[32,4,32,5],[21,4,21,5],[22,4,22,5],[23,4,23,5],[24,4,24,5],[25,4,25,5],[26,4,26,5],[1,4,1,11],[20,4,20,5],[9,4,9,5],[10,4,10,5],[11,4,11,5],[12,4,12,5],[13,4,13,5],[14,4,14,5],[15,4,15,5],[16,4,16,5],[1,60,1,70],[2,4,2,5],[2,10,2,11],[8,4,8,5],[1,2,1,3],[3,4,3,5],[4,4,4,5],[5,4,5,5],[6,4,6,5],[7,4,7,5]]}
[]
[null,null,null,null,"GESTIÓN EFICIENTE DEL TIEMPO",null,null,null,null,null,null,null,null,null,null,null,null,null,null,null,null,null,null,null,null,null,null,null,null,null,null,null,null,null,null,null,null,null,null,null,null,null,null,null,null,null,null,null,null,null,null,null,null,null,null,null,null,null,null,null,"↓↓↓  CÁLCULOS. No borrar ↓↓↓"]
[null,null,null,0,"Tarea",null,"Tipo","Tiempo previsto (min)","Tiempo dedicado (min)","Eficiencia","¿Qué hacer?",null,null,null,null,null,null,null,null,null,null,null,null,null,null,null,null,null,null,null,null,null,null,null,null,null,null,null,null,null,null,null,null,null,null,null,null,null,null,null,null,null,null,null,null,null,null,null,null,null,"Tipos","A","B","C","D",null,"A","Hacer inmediatamente","A",1,3]
[null,null,null,null,null,null,null,null,null,null,null,null,null,null,null,null,null,null,null,null,null,null,null,null,null,null,null,null,null,null,null,null,null,null,null,null,null,null,null,null,null,null,null,null,null,null,null,null,null,null,null,null,null,null,null,null,null,null,null,null,null,{"$f":"IF(G4=$BJ$3,H4,0)","v":0},{"$f":"IF(G4=$BK$3,H4,0)","v":0},{"$f":"IF(G4=$BL$3,H4,0)","v":0},{"$f":"IF(G4=$BM$3,H4,0)","v":0},null,"B","Programar o delegar ya","B",3,3]
[null,null,null,null,null,null,null,null,null,{"$f":"IF(I5<>0,H5/I5,\"\")","v":""},null,{"$f":"IF(G5<>\"\",VLOOKUP(G5,$BO$3:$BP$6,2),\"\")","v":""},null,null,null,null,null,null,null,null,null,null,null,null,null,null,null,null,null,null,null,null,null,null,null,null,null,null,null,null,null,null,null,null,null,null,null,null,null,null,null,null,null,null,null,null,null,null,null,null,null,0,0,0,0,null,"C","Delegar ","C",1,1]
[null,null,null,null,null,null,null,null,null,"",null,"",null,null,null,null,null,null,null,null,null,null,null,null,null,null,null,null,null,null,null,null,null,null,null,null,null,null,null,null,null,null,null,null,null,null,null,null,null,null,null,null,null,null,null,null,null,null,null,null,null,0,0,0,0,null,"D","Ignorar o eliminar","D",3,1]
[null,null,null,null,null,null,null,null,null,"",null,"",null,null,null,null,null,null,null,null,null,null,null,null,null,null,null,null,null,null,null,null,null,null,null,null,null,null,null,null,null,null,null,null,null,null,null,null,null,null,null,null,null,null,null,null,null,null,null,null,null,0,0,0,0]
[null,null,null,null,null,null,null,null,null,"",null,"",null,null,null,null,null,null,null,null,null,null,null,null,null,null,null,null,null,null,null,null,null,null,null,null,null,null,null,null,null,null,null,null,null,null,null,null,null,null,null,null,null,null,null,null,null,null,null,null,null,0,0,0,0]
[null,null,null,null,null,null,null,null,null,"",null,"",null,null,null,null,null,null,null,null,null,null,null,null,null,null,null,null,null,null,null,null,null,null,null,null,null,null,null,null,null,null,null,null,null,null,null,null,null,null,null,null,null,null,null,null,null,null,null,null,null,0,0,0,0]
[null,null,null,null,null,null,null,null,null,"",null,"",null,null,null,null,null,null,null,null,null,null,null,null,null,null,null,null,null,null,null,null,null,null,null,null,null,null,null,null,null,null,null,null,null,null,null,null,null,null,null,null,null,null,null,null,null,null,null,null,null,0,0,0,0]
[null,null,null,null,null,null,null,null,null,"",null,"",null,null,null,null,null,null,null,null,null,null,null,null,null,null,null,null,null,null,null,null,null,null,null,null,null,null,null,null,null,null,null,null,null,null,null,null,null,null,null,null,null,null,null,null,null,null,null,null,null,0,0,0,0]
[null,null,null,null,null,null,null,null,null,"",null,"",null,null,null,null,null,null,null,null,null,null,null,null,null,null,null,null,null,null,null,null,null,null,null,null,null,null,null,null,null,null,null,null,null,null,null,null,null,null,null,null,null,null,null,null,null,null,null,null,null,0,0,0,0]
[null,null,null,null,null,null,null,null,null,"",null,"",null,null,null,null,null,null,null,null,null,null,null,null,null,null,null,null,null,null,null,null,null,null,null,null,null,null,null,null,null,null,null,null,null,null,null,null,null,null,null,null,null,null,null,null,null,null,null,null,null,0,0,0,0]
[null,null,null,null,null,null,null,null,null,"",null,"",null,null,null,null,null,null,null,null,null,null,null,null,null,null,null,null,null,null,null,null,null,null,null,null,null,null,null,null,null,null,null,null,null,null,null,null,null,null,null,null,null,null,null,null,null,null,null,null,null,0,0,0,0]
[null,null,null,null,null,null,null,null,null,"",null,"",null,null,null,null,null,null,null,null,null,null,null,null,null,null,null,null,null,null,null,null,null,null,null,null,null,null,null,null,null,null,null,null,null,null,null,null,null,null,null,null,null,null,null,null,null,null,null,null,null,0,0,0,0]
[null,null,null,null,null,null,null,null,null,"",null,"",null,null,null,null,null,null,null,null,null,null,null,null,null,null,null,null,null,null,null,null,null,null,null,null,null,null,null,null,null,null,null,null,null,null,null,null,null,null,null,null,null,null,null,null,null,null,null,null,null,0,0,0,0]
[null,null,null,null,null,null,null,null,null,"",null,"",null,null,null,null,null,null,null,null,null,null,null,null,null,null,null,null,null,null,null,null,null,null,null,null,null,null,null,null,null,null,null,null,null,null,null,null,null,null,null,null,null,null,null,null,null,null,null,null,null,0,0,0,0]
[null,null,null,null,null,null,null,null,null,"",null,"",null,null,null,null,null,null,null,null,null,null,null,null,null,null,null,null,null,null,null,null,null,null,null,null,null,null,null,null,null,null,null,null,null,null,null,null,null,null,null,null,null,null,null,null,null,null,null,null,null,0,0,0,0]
[null,null,null,null,null,null,null,null,null,"",null,"",null,null,null,null,null,null,null,null,null,null,null,null,null,null,null,null,null,null,null,null,null,null,null,null,null,null,null,null,null,null,null,null,null,null,null,null,null,null,null,null,null,null,null,null,null,null,null,null,null,0,0,0,0]
[null,null,null,null,null,null,null,null,null,"",null,"",null,null,null,null,null,null,null,null,null,null,null,null,null,null,null,null,null,null,null,null,null,null,null,null,null,null,null,null,null,null,null,null,null,null,null,null,null,null,null,null,null,null,null,null,null,null,null,null,null,0,0,0,0]
[null,null,null,null,null,null,null,null,null,"",null,"",null,null,null,null,null,null,null,null,null,null,null,null,null,null,null,null,null,null,null,null,null,null,null,null,null,null,null,null,null,null,null,null,null,null,null,null,null,null,null,null,null,null,null,null,null,null,null,null,null,0,0,0,0]
[null,null,null,null,null,null,null,null,null,"",null,"",null,null,null,null,null,null,null,null,null,null,null,null,null,null,null,null,null,null,null,null,null,null,null,null,null,null,null,null,null,null,null,null,null,null,null,null,null,null,null,null,null,null,null,null,null,null,null,null,null,0,0,0,0]
[null,null,null,null,null,null,null,null,null,"",null,"",null,null,null,null,null,null,null,null,null,null,null,null,null,null,null,null,null,null,null,null,null,null,null,null,null,null,null,null,null,null,null,null,null,null,null,null,null,null,null,null,null,null,null,null,null,null,null,null,null,0,0,0,0]
[null,null,null,null,null,null,null,null,null,"",null,"",null,null,null,null,null,null,null,null,null,null,null,null,null,null,null,null,null,null,null,null,null,null,null,null,null,null,null,null,null,null,null,null,null,null,null,null,null,null,null,null,null,null,null,null,null,null,null,null,null,0,0,0,0]
[null,null,null,null,null,null,null,null,null,"",null,"",null,null,null,null,null,null,null,null,null,null,null,null,null,null,null,null,null,null,null,null,null,null,null,null,null,null,null,null,null,null,null,null,null,null,null,null,null,null,null,null,null,null,null,null,null,null,null,null,null,0,0,0,0]
[null,null,null,null,null,null,null,null,null,"",null,"",null,null,null,null,null,null,null,null,null,null,null,null,null,null,null,null,null,null,null,null,null,null,null,null,null,null,null,null,null,null,null,null,null,null,null,null,null,null,null,null,null,null,null,null,null,null,null,null,null,0,0,0,0]
[null,null,null,null,null,null,null,null,null,"",null,"",null,null,null,null,null,null,null,null,null,null,null,null,null,null,null,null,null,null,null,null,null,null,null,null,null,null,null,null,null,null,null,null,null,null,null,null,null,null,null,null,null,null,null,null,null,null,null,null,null,0,0,0,0]
[null,null,null,null,null,null,null,null,null,"",null,"",null,null,null,null,null,null,null,null,null,null,null,null,null,null,null,null,null,null,null,null,null,null,null,null,null,null,null,null,null,null,null,null,null,null,null,null,null,null,null,null,null,null,null,null,null,null,null,null,null,0,0,0,0]
[null,null,null,null,null,null,null,null,null,"",null,"",null,null,null,null,null,null,null,null,null,null,null,null,null,null,null,null,null,null,null,null,null,null,null,null,null,null,null,null,null,null,null,null,null,null,null,null,null,null,null,null,null,null,null,null,null,null,null,null,null,0,0,0,0]
[null,null,null,null,null,null,null,null,null,"",null,"",null,null,null,null,null,null,null,null,null,null,null,null,null,null,null,null,null,null,null,null,null,null,null,null,null,null,null,null,null,null,null,null,null,null,null,null,null,null,null,null,null,null,null,null,null,null,null,null,null,0,0,0,0]
[null,null,null,null,null,null,null,null,null,"",null,"",null,null,null,null,null,null,null,null,null,null,null,null,null,null,null,null,null,null,null,null,null,null,null,null,null,null,null,null,null,null,null,null,null,null,null,null,null,null,null,null,null,null,null,null,null,null,null,null,null,0,0,0,0]
[null,null,null,null,null,null,null,null,null,"",null,"",null,null,null,null,null,null,null,null,null,null,null,null,null,null,null,null,null,null,null,null,null,null,null,null,null,null,null,null,null,null,null,null,null,null,null,null,null,null,null,null,null,null,null,null,null,null,null,null,null,0,0,0,0]
[null,null,null,null,null,null,null,null,null,"",null,"",null,null,null,null,null,null,null,null,null,null,null,null,null,null,null,null,null,null,null,null,null,null,null,null,null,null,null,null,null,null,null,null,null,null,null,null,null,null,null,null,null,null,null,null,null,null,null,null,null,0,0,0,0]
[null,null,null,null,null,null,null,null,null,"",null,"",null,null,null,null,null,null,null,null,null,null,null,null,null,null,null,null,null,null,null,null,null,null,null,null,null,null,null,null,null,null,null,null,null,null,null,null,null,null,null,null,null,null,null,null,null,null,null,null,null,0,0,0,0]
[null,null,null,null,null,null,null,null,null,"",null,"",null,null,null,null,null,null,null,null,null,null,null,null,null,null,null,null,null,null,null,null,null,null,null,null,null,null,null,null,null,null,null,null,null,null,null,null,null,null,null,null,null,null,null,null,null,null,null,null,null,0,0,0,0]
[null,null,null,null,null,null,null,null,null,"",null,"",null,null,null,null,null,null,null,null,null,null,null,null,null,null,null,null,null,null,null,null,null,null,null,null,null,null,null,null,null,null,null,null,null,null,null,null,null,null,null,null,null,null,null,null,null,null,null,null,null,0,0,0,0]
[null,null,null,null,null,null,null,null,null,"",null,"",null,null,null,null,null,null,null,null,null,null,null,null,null,null,null,null,null,null,null,null,null,null,null,null,null,null,null,null,null,null,null,null,null,null,null,null,null,null,null,null,null,null,null,null,null,null,null,null,null,0,0,0,0]
[null,null,null,null,null,null,null,null,null,"",null,"",null,null,null,null,null,null,null,null,null,null,null,null,null,null,null,null,null,null,null,null,null,null,null,null,null,null,null,null,null,null,null,null,null,null,null,null,null,null,null,null,null,null,null,null,null,null,null,null,null,0,0,0,0]
[null,null,null,null,null,null,null,null,null,"",null,"",null,null,null,null,null,null,null,null,null,null,null,null,null,null,null,null,null,null,null,null,null,null,null,null,null,null,null,null,null,null,null,null,null,null,null,null,null,null,null,null,null,null,null,null,null,null,null,null,null,0,0,0,0]
[null,null,null,null,null,null,null,null,null,"",null,"",null,null,null,null,null,null,null,null,null,null,null,null,null,null,null,null,null,null,null,null,null,null,null,null,null,null,null,null,null,null,null,null,null,null,null,null,null,null,null,null,null,null,null,null,null,null,null,null,null,0,0,0,0]
[null,null,null,null,null,null,null,null,null,"",null,"",null,null,null,null,null,null,null,null,null,null,null,null,null,null,null,null,null,null,null,null,null,null,null,null,null,null,null,null,null,null,null,null,null,null,null,null,null,null,null,null,null,null,null,null,null,null,null,null,null,0,0,0,0]
[null,null,null,null,null,null,null,null,null,"",null,"",null,null,null,null,null,null,null,null,null,null,null,null,null,null,null,null,null,null,null,null,null,null,null,null,null,null,null,null,null,null,null,null,null,null,null,null,null,null,null,null,null,null,null,null,null,null,null,null,null,0,0,0,0]
[null,null,null,null,null,null,null,null,null,"",null,null,null,null,null,null,null,null,null,null,null,null,null,null,null,null,null,null,null,null,null,null,null,null,null,null,null,null,null,null,null,null,null,null,null,null,null,null,null,null,null,null,null,null,null,null,null,null,null,null,null,0,0,0,0]
[null,null,null,null,null,null,null,null,null,"",null,{"$f":"IF(G44<>\"\",VLOOKUP(G44,$BO$3:$BP$6,2),\"\")","v":""},null,null,null,null,null,null,null,null,null,null,null,null,null,null,null,null,null,null,null,null,null,null,null,null,null,null,null,null,null,null,null,null,null,null,null,null,null,null,null,null,null,null,null,null,null,null,null,null,null,0,0,0,0]
[null,null,null,null,null,null,null,null,null,"",null,{"$f":"IF(G45<>\"\",VLOOKUP(G45,$BO$3:$BP$6,2),\"\")","v":""},null,null,null,null,null,null,null,null,null,null,null,null,null,null,null,null,null,null,null,null,null,null,null,null,null,null,null,null,null,null,null,null,null,null,null,null,null,null,null,null,null,null,null,null,null,null,null,null,null,0,0,0,0]
[null,null,null,null,null,null,null,null,null,"",null,{"$f":"IF(G46<>\"\",VLOOKUP(G46,$BO$3:$BP$6,2),\"\")","v":""},null,null,null,null,null,null,null,null,null,null,null,null,null,null,null,null,null,null,null,null,null,null,null,null,null,null,null,null,null,null,null,null,null,null,null,null,null,null,null,null,null,null,null,null,null,null,null,null,null,0,0,0,0]
[null,null,null,null,null,null,null,null,null,"",null,null,null,null,null,null,null,null,null,null,null,null,null,null,null,null,null,null,null,null,null,null,null,null,null,null,null,null,null,null,null,null,null,null,null,null,null,null,null,null,null,null,null,null,null,null,null,null,null,null,null,0,0,0,0]
[null,null,null,null,null,null,null,null,null,"",null,{"$f":"IF(G48<>\"\",VLOOKUP(G48,$BO$3:$BP$6,2),\"\")","v":""},null,null,null,null,null,null,null,null,null,null,null,null,null,null,null,null,null,null,null,null,null,null,null,null,null,null,null,null,null,null,null,null,null,null,null,null,null,null,null,null,null,null,null,null,null,null,null,null,null,0,0,0,0]
[null,null,null,null,null,null,null,null,null,"",null,{"$f":"IF(G49<>\"\",VLOOKUP(G49,$BO$3:$BP$6,2),\"\")","v":""},null,null,null,null,null,null,null,null,null,null,null,null,null,null,null,null,null,null,null,null,null,null,null,null,null,null,null,null,null,null,null,null,null,null,null,null,null,null,null,null,null,null,null,null,null,null,null,null,null,0,0,0,0]
[null,null,null,null," "]
[null,null,null,null,null,null,null,null,null,null,null,null,null,null,null,null,null,null,null,null,null,null,null,null,null,null,null,null,null,null,null,null,null,null,null,null,null,null,null,null,null,null,null,null,null,null,null,null,null,null,null,null,null,null,null,null,null,null,null,null,null,{"$f":"SUM(BJ4:BJ49)","v":0},{"$f":"SUM(BK4:BK49)","v":0},{"$f":"SUM(BL4:BL49)","v":0},{"$f":"SUM(BM4:BM49)","v":0}]
[]
[]
[]
[]
[]
[]
[]
[]
[]
[]
[]
[]
[]
[]
[]
[]
[]
[]
[]
[]
[]
[]
[]
[]
[]
[]
[]
[]
[]
[]
[]
[]
[]
[]
[]
[]
[]
[]
[]
[]
[]
[]
[]
[]
[]
[]
[]
[]
[]
[]
[]
[]
[]
[]
[]
[]
[]
[]
[]
[]
[]
[]
[]
[]
[]
[]
[]
[]
[]
[]
[]
[]
[]
[]
[]
[]
[]
[]
[]
[]
[]
[]
[]
[]
[]
[]
[]
[]
[]
[]
[]
[]
[]
[]
[]
[]
[]
[]
[]
[]
[]
[]
[]
[]
[]
[]
[]
[]
[]
[]
[]
[]
[]
[]
[]
[]
[]
[]
[]
[]
[]
[]
[]
[]
[]
[]
[]
[]
[]
[]
[]
[]
[]
[]
[]
[]
[]
[]
[]
[]
[]
[]
[]
[]
[]
[]
[]
[]
[]
[]
[]
[]
[]
[]
[]
[]
[]
[]
[]
[]
[]
[]
[]
[]
[]
[]
[]
[]
[]
[]
[]
[]
[]
[]
[]
[]
[]
[]
[]
[]
[]
[]
[]
[]
[]
[]
[]
[]
[]
[]
[]
[]
[]
[]
[]
[]
[]
[]
[]
[]
[]
[]
[]
[]
[]
[]
[]
[]
[]
[]
[]
[]
[]
[]
[]
[]
[]
[]
[]
[]
[]
[]
[]
[]
[]
[]
[]
[]
[]
[]
[]
[]
[]
[]
[]
[]
[]
[]
[]
[]
[]
[]
[]
[]
[]
[]
[]
[null,null,"Información general"]
[]
[null,null,null,null,"Hoja para la gestión eficiente del tiempo mediante la matriz urgente/importante"]
[null,null,null,null,"La matriz \"urgente/importante\" de Stephen Covey"]
[null,null,null,null,"Podemos hacer una correcta gestión del tiempo mediante  la técnica de valorar las tareas aplicando criterios de importancia y urgencia. El resultado es  una "]
[null,null,null,null,"matriz de prioridades, propuesta inicialmente por Stephen R. Covey: la matriz urgente-importante. "]
[null,null,null,null,"La matriz establece un orden de prioridades para multiples tareas que realizamos a diario. Se obtiene mediante los siguientes pasos:"]
[]
[null,null,null,null,null,"1. Confección de una lista de tareas."]
[null,null,null,null,null,"2. Se decide el tipo a que pertenece cada tarea en la matriz, según los criterios siguientes:"]
[null,null,null,null,null,"    A) Importante y Urgente\r\n"]
[null,null,null,null,null,"           Este cuadrante es en el que nos movemos cada día. Son asuntos que reclaman atención immediata y/o actividades que se han ido "]
[null,null,null,null,null,"           postergando hasta convertirse en urgentes. Cuanto más nos centramos en este cuadrante menos margen de maniobra nos deja. "]
[null,null,null,null,null,"           Es el cuadrante del estrés y el agotamiento."]
[null,null,null,null,null,"    B \t) Importante y No urgente\r\n"]
[null,null,null,null,null,"          Cuadrante de la calidad, donde planificamos a largo plazo, nos anticipamos y prevenimos problemas, incrementamos nuestras "]
[null,null,null,null,null,"          habilidades y nos proporciona un desarrollo continuo. En él se invierte en las relaciones con los demás, permitiéndonos incrementar "]
[null,null,null,null,null,"          las capacidades de ejecución. Nosotros actuamos sobre él, nos da el poder de generar capacidad."]
[null,null,null,null,null,"          Es el cuadrante del liderazgo personal, la previsión y la preparación."]
[null,null,null,null,null,"     C) No importante y Urgente"]
[null,null,null,null,null,"          Es el cuadrante del engaño. Aquí pasamos la mayor parte del tiempo, a veces creyendo equivocadamente que se trata de actividades"]
[null,null,null,null,null,"         del cuadrante 1. Suelen ser actividades que sirven para satisfacer las prioridades y espectativas de los demás, por eso debemos aprender"]
[null,null,null,null,null,"         a decir no, o a delegar tareas. En él se encuentran las llamadas, interrupciones, reuniones, correos,..."]
[null,null,null,null,null,"     D\t) No importante y No urgente\r\n"]
[null,null,null,null,null,"         Cuadrante de la pérdida de tiempo al que solemos escapar para huir del agobio del cuadrante A y C. Implica deterioro, no aporta "]
[null,null,null,null,null,"         nada. Son tareas triviales como correo spam, publicidad, pausas,..."]
[]
[null,null,null,null,null,"3. Una vez clasificadas las tareas, deberemos proceder de la forma siguiente:"]
[null,null,null,null,null,"      A) Realizar inmediatamente las tareas del cuadrante A,  "]
[null,null,null,null,null,"      B) Programar o delegar  las del cuadrante B, "]
[null,null,null,null,null,"      C) Delegar o ceder las del cuadrante C,"]
[null,null,null,null,null,"      D) Ignorar (no hacer nada) o eliminar las del cuadrante D. "]
[]
[]
[]
[]
[null,null,null,null,"Esta hoja Excel®, te ayuda en la aplicación de este modelo. "]
[]
[null,null,null,null,"Qué tienes que hacer:"]
[null,null,null,null,"Pon los datos en las celdas con fondo blanco."]
[null,null,null,null,"Debes indicar: la tarea, asignarle un tipo (A,B,C,D), el tiempo previsto para realizarla y finalmente el tiempo final realmente invertido en ella."]
[null,null,null,null,"La hoja realizará los cálculos y el gráfico."]
[]
[null,null,null,null,"Cómo funciona:"]
[null,null,null,null,"A partir de estos datos la aplicación calcula el valor de cada cuadrante de la matriz, sumando el tiempo asignado de las tareas que comparten "]
[null,null,null,null,"criterios y los representa mediante un gráfico de burbujas. "]
[null,null,null,null,"El tamaño de las burbujas será proporcional al tiempo previsto para cada tipo de tarea."]
[]
[null,null,null,null,"En general , lo ideal es que la burbuja de mayor tamaño sea la del cuadrante B, que representará la eficiencia en la organización de nuestro tiempo."]
[null,null,null,null,"Al decir no y/o delegar a los cuadrantes C y D estamos diciendo sí al cuadrante B. Y cuando esto ocurre, el A se hace cada vez menor."]
[null,null,null,null,"Tarea 1",null,"A",30]
[null,null,null,null,"Tarea 1",null,"A",30]

{"sheet":"prueba","index":1,"n_rows":26,"n_cols":7,"rows_kept":26,"cut":false,"hidden":true,"merged":[]}
[]
[]
[]
[null,null,{"$f":"D4","v":0},"00:00:00",null,{"$f":"D4","v":"00:00:00"}]
[]
[null,null,{"$f":"D6","v":0.95833333333333337},"23:00:00",null,{"$f":"D6","v":"23:00:00"}]
[]
[null,null,{"$f":"D8","v":0.5},"12:00:00",null,{"$f":"D8","v":"12:00:00"}]
[]
[]
[]
[null,null,{"$f":"D12","v":0.97916666666666674},{"$f":"+D6+\"00:30:00\"","v":"23:30:00"},null,{"$f":"D12","v":"23:30:00"}]
[]
[null,null,{"$f":"D14","v":2.0833333333333332E-2},{"$f":"+D4+\"00:30:00\"","v":"00:30:00"},null,{"$f":"D14","v":"00:30:00"}]
[]
[]
[]
[]
[]
[]
[null,null,null,null,null,4,"a"]
[null,null,null,null,null,5,"b"]
[null,null,null,null,null,6,"c"]
[null,null,null,null,null,8,"d"]
[]
[null,null,null,{"$f":"INDEX(F21:G24,D25,2)","v":{"$error":"#VALUE!"}}]